Cogmind - Beta 13 @@@ ROGUE MODE // 2024.04.03 @ 09:42:26 Player: AndK Result: Destroyed by G-47 Trooper with Particle Gun Performance ------------- Evolutions (3) 1500 Regions Visited (6) 1200 Robots Destroyed (88) 440 Value Destroyed (2124) 2124 Prototype IDs (1) 20 Alien Tech Used (0) 0 Bonus (505) 505 TOTAL SCORE: 5789 Bonus ------- High Alert Combat Kills 31 Entered DSFs 500 Friendly Fire -26 Cogmind --------- Core Integrity 0/700 Matter 218/450 Energy 100/100 System Corruption 0% Temperature Cool (-91) Movement Core (400) Ox7 Location -7/DSF Parts ------- > --- POWER (2) -------- (None) > --- PROPULSION (2) --- (None) > --- UTILITY (5) ------ Cryofiber Web Large Storage Unit Large Matter Pod Visual Processing Unit > --- WEAPON (4) ------- (None) > --- INVENTORY (15) --- (None) Peak State ------------ > --- POWER ------------ Reinforced Ion Engine Deuterium Engine > --- PROPULSION ------- Carbon-fiber Leg Carbon-fiber Leg > --- UTILITY ---------- Heat Sink Large Storage Unit High-capacity Battery Improved Targeting Computer Hardened Medium Armor Plating > --- WEAPON ----------- Field Laser Pulse Rifle Pulse Rifle Pulse Rifle > --- INVENTORY -------- Light Nuclear Core Cryofiber Web Large Battery Large Matter Pod Visual Processing Unit Heavy Particle Cannon Ion Cannon Minigun Minigun Rocket Launcher [Rating: 33] Favorites ----------- Power Ion Engine Engine Ion Engine Power Core Light Nuclear Core Propulsion Aluminum Leg Treads Light Treads Leg Aluminum Leg Wheel Compact Wheel Hover Unit Hover Unit Flight Unit Improved Flight Unit Utility Large Storage Unit Device Heat Sink Storage Large Storage Unit Processor Improved Targeting Computer Protection Hardened Light Armor Plating Weapon Mini Grenade Launcher Energy Gun Pulse Rifle Energy Cannon Ion Cannon Ballistic Gun Light Assault Rifle Ballistic Cannon Improved Light Cannon Launcher Mini Grenade Launcher Build | -11 -10 -9 -9 -8 -7 -7 ------- Run | Yrd Mat Mat Min Mat Fac DSF Slots Evolved 6 | . . 2 . 2 2 . Power 1 | . . . . 1 . . Propulsion . | . . . . . . . Utility 3 | . . 1 . 1 1 . Weapon 2 | . . 1 . . 1 . Parts Attached 78 | 6 8 28 3 18 2 13 Power 11 | 1 2 3 . 3 . 2 Engine 9 | 1 2 3 . 3 . . Core 2 | . . . . . . 2 Reactor . | . . . . . . . Propulsion 15 | 2 . 8 3 2 . . Treads 3 | . . . 3 . . . Leg 7 | 2 . 3 . 2 . . Wheel 2 | . . 2 . . . . Hover 1 | . . 1 . . . . Flight 2 | . . 2 . . . . Utility 22 | 1 4 3 . 7 1 6 Device 4 | . . . . . 1 3 Storage 11 | 1 4 1 . 3 . 2 Processor 3 | . . . . 2 . 1 Hackware . | . . . . . . . Protection 4 | . . 2 . 2 . . Artifact . | . . . . . . . Weapon 30 | 2 2 14 . 6 1 5 Energy Gun 11 | . 2 4 . 4 1 . Energy Cannon 2 | . . . . . . 2 Ballistic Gun 5 | 2 . 1 . . . 2 Ballistic Cannon 4 | . . 4 . . . . Launcher 8 | . . 5 . 2 . 1 Special Weapon . | . . . . . . . Impact Weapon . | . . . . . . . Slashing Weapon . | . . . . . . . Piercing Weapon . | . . . . . . . Special Melee Weapon . | . . . . . . . Unidentified Prototypes 1 | . . 1 . . . . Parts Lost 37 | . . 10 . 7 . 20 Power 8 | . . 2 . 2 . 4 Propulsion 8 | . . 4 . 2 . 2 Utility 9 | . . 2 . 1 . 6 Weapon 12 | . . 2 . 2 . 8 Highest Loss Streak 9 | . . 4 . 7 . 9 To Critical Strikes . | . . . . . . . Average Slot Usage (%) 92 | . 96 91 100 92 100 73 Engine 12 | . 13 8 11 16 15 7 Treads 2 | . . . 18 2 . . Leg 14 | . 28 15 . 10 15 7 Storage 22 | . 25 27 22 18 15 13 Processor 4 | . . . . 9 7 11 Protection 5 | . . 4 11 7 7 2 Energy Gun 11 | . 19 6 . 13 30 15 Ballistic Gun 1 | . 8 . . . . 1 Ballistic Cannon 5 | . . 19 . . . . Launcher 9 | . . 4 33 13 . . Naked Turns . | . . . . . . . Heaviest Build 64 | 10 33 43 39 60 64 64 Greatest Support 40 | 20 20 32 40 40 30 30 Greatest Overweight (x) 14 | . 1 7 3 3 2 14 Average Overweight (x) 1 | . . 2 . 1 2 6 Largest Inventory Capacity 15 | 8 15 15 15 15 15 15 Average Capacity 14 | 6 11 15 15 15 15 15 Most Carried 13 | 5 12 13 8 12 11 10 Average Carried 7 | 3 8 7 6 6 10 7 Final Capacity 15 | 8 15 15 15 15 15 15 Final Carried 12 | 4 12 6 7 12 10 . Class Distribution -------------------- 34% | Bomber 27% | Mutant 24% | Tank 14% | Gunner Dominant Class ---------------- Mutant | -10/Materials Gunner | -9/Materials Tank | -9/Mines Bomber | -8/Materials Bomber | -7/Factory Mutant | -7/DSF Resources | -11 -10 -9 -9 -8 -7 -7 ----------- Run | Yrd Mat Mat Min Mat Fac DSF Matter Collected 1664 | 221 204 626 120 236 . 257 Remotely . | . . . . . . . Salvage Created 2327 | . 349 1196 131 364 . 287 Parts 149 | . 24 79 10 23 . 13 Haulers Intercepted 1 | . . 1 . . . . Recyclers Shooed . | . . . . . . . Parts Field Recycled . | . . . . . . . Retrieved Matter . | . . . . . . . Parts Self-Destructed . | . . . . . . . Prevented . | . . . . . . . Kills | -11 -10 -9 -9 -8 -7 -7 ------- Run | Yrd Mat Mat Min Mat Fac DSF Combat Hostiles Destroyed 61 | . 9 28 7 9 . 8 Guns 30 | . 8 9 . 5 . 8 Cannons 15 | . . 15 . . . . AOE 16 | . 1 4 7 4 . . Classes Destroyed 14 | . 4 7 . 1 . 2 Worker 6 | . 1 4 1 . . . Builder 6 | . . 1 . 5 . . Tunneler 2 | . . 1 1 . . . Hauler 1 | . . 1 . . . . Recycler 4 | . . 2 . 2 . . Watcher 8 | . 2 4 . 2 . . Swarmer 22 | . 3 8 4 4 . 3 Grunt 27 | . 6 14 3 1 . 3 Brawler 1 | . . 1 . . . . Duelist 1 | . . 1 . . . . Sentry 7 | . . 4 . 3 . . Specialist 1 | . . . . . . 1 Hunter 1 | . . . . 1 . . Heavy 1 | . . . . . . 1 Best Kill Streak 10 | . 3 9 5 10 . 5 Combat Bots Only 7 | . 3 7 4 6 . 5 Max Kills in Single Turn 4 | . 1 4 3 4 . 2 Gunslinging 1 | . . 1 . . . 1 Exploded 3 | . 1 3 2 1 . . Melee . | . . . . . . . Uniques/NPCs Destroyed . | . . . . . . . Combat | -11 -10 -9 -9 -8 -7 -7 -------- Run | Yrd Mat Mat Min Mat Fac DSF Hostile Shots Fired 444 | . 52 152 4 92 . 144 Missed 122 | . 15 35 . 30 . 42 Damage Taken 5388 | . 333 1450 180 1008 . 2417 Core 1354 | . 95 374 . 171 . 714 Absorbed by Shields . | . . . . . . . Core Remaining (%) 59 | 100 62 . 6 68 . . Volleys Fired 145 | . 28 54 4 35 . 24 Largest 4 | . 2 3 3 3 . 4 Hottest 252 | . 80 135 90 189 . 252 Shots Fired 360 | . 56 160 12 66 . 66 Gun 201 | . 56 52 . 37 . 56 Cannon 115 | . . 105 . . . 10 Launcher 44 | . . 3 12 29 . . Special . | . . . . . . . Kinetic 144 | . 22 113 . . . 9 Thermal 94 | . . . . 37 . 57 Explosive 44 | . . 3 12 29 . . Electromagnetic 78 | . 34 44 . . . . Robot Hit Streak 14 | . 8 5 1 9 . 14 Robot Miss Streak 6 | . 6 6 5 3 . 2 Penetration Max . | . . . . . . . Secondary Targets 11 | . 4 3 . . . 4 Max Gunslinging Chain 2 | . 1 2 . . . 1 Shots Hit Robots 180 | . 33 68 1 31 . 47 Core Hits 119 | . 16 46 11 28 . 18 Critical Kills . | . . . . . . . Critical Parts Destroyed . | . . . . . . . Critical Strikes 4 | . 1 . . 3 . . Burn 3 | . . . . 3 . . Corrupt 1 | . 1 . . . . . Melee Attacks . | . . . . . . . Impact . | . . . . . . . Slashing . | . . . . . . . Piercing . | . . . . . . . Sneak Attacks . | . . . . . . . Combat Hostiles . | . . . . . . . Follow-up Attacks . | . . . . . . . Damage Inflicted 5067 | . 554 1769 379 1483 . 882 Guns 1929 | . 447 396 . 395 . 691 Cannons 1274 | . . 1083 . . . 191 Explosions 1864 | . 107 290 379 1088 . . Melee . | . . . . . . . Ramming . | . . . . . . . Kinetic 1310 | . 87 1117 . . . 106 Thermal 1402 | . 107 124 . 395 . 776 Explosive 1633 | . . 166 379 1088 . . Electromagnetic 722 | . 360 362 . . . . Impact . | . . . . . . . Slashing . | . . . . . . . Piercing . | . . . . . . . Highest Corruption . | . . . . . . . Average Corruption . | . . . . . . . Corruption Purged . | . . . . . . . Corruption Blocked . | . . . . . . . Overload Shots . | . . . . . . . Overflow Damage 217 | . . 138 . 79 . . Projectiles 38 | . . 38 . . . . Explosions 179 | . . 100 . 79 . . Melee . | . . . . . . . Knockbacks 9 | . . 9 . . . . Impact . | . . . . . . . Kinetic 8 | . . 8 . . . . Secondary 1 | . . 1 . . . . Self-Inflicted Damage 572 | . . 190 142 240 . . Shots 15 | . . 3 4 8 . . Rammed . | . . . . . . . Targets Rammed . | . . . . . . . Kicked . | . . . . . . . Crushed . | . . . . . . . Highest Temperature 598 | . 144 598 90 328 . 598 Average Temperature 148 | . 66 157 36 115 . 360 Received Heat Transfer 858 | . 96 273 12 189 . 288 Effects 34 | . . 10 . 1 . 23 Shutdowns 8 | . . 2 . . . 6 Energy Bleed 6 | . . 2 . 1 . 3 Interference 3 | . . 1 . . . 2 Matter Decay 3 | . . . . . . 3 Short Circuit 2 | . . 1 . . . 1 Damage (minor) 1 | . . 1 . . . . Damage (major) 9 | . . 1 . . . 8 Damage (core) 2 | . . 2 . . . . Siege Activations . | . . . . . . . Robots Corrupted . | . . . . . . . Combat Hostiles . | . . . . . . . Parts Fried 6 | . 3 3 . . . . Impact Corruptions . | . . . . . . . Robots Melted . | . . . . . . . Combat Hostiles . | . . . . . . . Parts Melted 1 | . . . 1 . . . Heat Transferred 2977 | . 200 150 . 1073 . 1554 Parts Sabotaged . | . . . . . . . Parts Stolen . | . . . . . . . Parts Stripped . | . . . . . . . Power Chain Reactions 5 | . 3 2 . . . . Alert | -11 -10 -9 -9 -8 -7 -7 ------- Run | Yrd Mat Mat Min Mat Fac DSF Peak Influence 480 | . 194 455 390 480 . 115 Initial 148 | . . 18 148 74 . . Average 172 | . 63 275 257 168 . 58 Maximum Alert Level 2 | . . 2 1 2 . . Low Security (%) 63 | 100 100 27 35 68 100 100 Level 1 32 | . . 67 64 25 . . Level 2 3 | . . 5 . 6 . . Level 3 . | . . . . . . . Level 4 . | . . . . . . . Level 5 . | . . . . . . . High Security . | . . . . . . . Max Security . | . . . . . . . Squads Dispatched 9 | . 2 3 1 1 . 2 Investigation 4 | . 1 2 1 . . . Extermination . | . . . . . . . Reinforcement 5 | . 1 1 . 1 . 2 Assault . | . . . . . . . Garrison . | . . . . . . . Intercept . | . . . . . . . Searches Triggered . | . . . . . . . Construction Impeded . | . . . . . . . Haulers Reinforced . | . . . . . . . Active Scanning Responses . | . . . . . . . Cargo Convoy Interrupts . | . . . . . . . Stealth | -11 -10 -9 -9 -8 -7 -7 --------- Run | Yrd Mat Mat Min Mat Fac DSF Distress Signals 6 | . 1 3 . 2 . . Communications Jammed . | . . . . . . . Distress Signals . | . . . . . . . Times Spotted 88 | . 15 36 7 15 . 15 Peak Tracking Total 6 | . 3 6 4 6 . 5 Tactical Retreats 6 | . 1 1 . 1 . 3 Traps | -11 -10 -9 -9 -8 -7 -7 ------- Run | Yrd Mat Mat Min Mat Fac DSF Traps Triggered 2 | . 1 1 . . . . Indirectly . | . . . . . . . Trap Hack Attempts . | . . . . . . . Triggered . | . . . . . . . Disarmed 6 | . . 6 . . . . Reprogrammed . | . . . . . . . Reused . | . . . . . . . Traps Extracted . | . . . . . . . Installed . | . . . . . . . Triggered . | . . . . . . . Machines | -11 -10 -9 -9 -8 -7 -7 ---------- Run | Yrd Mat Mat Min Mat Fac DSF Machines Disabled 10 | . . 7 . 3 . . Max in Single Turn 2 | . . 2 . 1 . . Machines Repaired . | . . . . . . . Machines Dismantled . | . . . . . . . Machines Sabotaged . | . . . . . . . Overloaded Fab Kills . | . . . . . . . Hacking | -11 -10 -9 -9 -8 -7 -7 --------- Run | Yrd Mat Mat Min Mat Fac DSF Machines Accessed 8 | . . 5 1 1 1 . Terminals 5 | . . 3 1 . 1 . Fabricators . | . . . . . . . Repair Stations 2 | . . 1 . 1 . . Recycling Units . | . . . . . . . Scanalyzers 1 | . . 1 . . . . Garrison Access . | . . . . . . . Total Hacks 26 | . . 18 5 2 1 . Successful 16 | . . 11 4 . 1 . Failed 10 | . . 7 1 2 . . Catastrophic 2 | . . . 1 1 . . Database Lockouts . | . . . . . . . Manual 1 | . . 1 . . . . Terminals 19 | . . 13 5 . 1 . Fabricators . | . . . . . . . Repair Stations 5 | . . 3 . 2 . . Recycling Units . | . . . . . . . Scanalyzers 2 | . . 2 . . . . Garrison Access . | . . . . . . . Terminal Hacks 13 | . . 8 4 . 1 . Record 7 | . . 4 3 . . . Open DSF 1 | . . . . . 1 . Alert Level 1 | . . 1 . . . . Unreport Threat 1 | . . 1 . . . . Locate Traps 1 | . . 1 . . . . Disarm Traps 1 | . . 1 . . . . Zone Layout 1 | . . . 1 . . . Fabricator Hacks . | . . . . . . . Repair Station Hacks 1 | . . 1 . . . . Scan Component 1 | . . 1 . . . . Recycling Unit Hacks . | . . . . . . . Scanalyzer 2 | . . 2 . . . . Insert Component 1 | . . 1 . . . . Analyze 1 | . . 1 . . . . Garrison Access Hacks . | . . . . . . . Unauthorized Hacks . | . . . . . . . Terminals . | . . . . . . . Fabricators . | . . . . . . . Repair Stations . | . . . . . . . Recycling Units . | . . . . . . . Scanalyzers . | . . . . . . . Garrison Access . | . . . . . . . Data Cores Recovered . | . . . . . . . Used . | . . . . . . . Hacking Detections 4 | . . 3 1 . . . Full Trace Events 2 | . . 1 1 . . . Feedback Events . | . . . . . . . Feedback Blocked . | . . . . . . . Robot Schematics Acquired . | . . . . . . . Robots Built . | . . . . . . . Authchips . | . . . . . . . Time . | . . . . . . . Total Robot Build Rating . | . . . . . . . Part Schematics Acquired 1 | . . 1 . . . . Parts Built . | . . . . . . . Authchips . | . . . . . . . Time . | . . . . . . . Total Part Build Rating . | . . . . . . . Parts Repaired . | . . . . . . . Time . | . . . . . . . Parts Recycled . | . . . . . . . Recycled Matter . | . . . . . . . Retrieved Matter . | . . . . . . . Retrieved Components . | . . . . . . . Parts Scanalyzed 1 | . . 1 . . . . Part Schematics Acquired 1 | . . 1 . . . . Parts Damaged . | . . . . . . . Bothacking | -11 -10 -9 -9 -8 -7 -7 ------------ Run | Yrd Mat Mat Min Mat Fac DSF Used RIF Installer . | . . . . . . . Robots Hacked . | . . . . . . . Non-combat . | . . . . . . . Combat . | . . . . . . . Robot Hacks Applied . | . . . . . . . Relay Couplers Released . | . . . . . . . Fabnet Peak Effective % . | . . . . . . . Robots Rewired . | . . . . . . . Allies Hacked . | . . . . . . . Hacks Repelled . | . . . . . . . Allies | -11 -10 -9 -9 -8 -7 -7 -------- Run | Yrd Mat Mat Min Mat Fac DSF Total Allies . | . . . . . . . Largest Group . | . . . . . . . Highest-Rated Group . | . . . . . . . Highest-Rated Ally . | . . . . . . . Total Orders . | . . . . . . . Ally Attacks . | . . . . . . . Total Damage . | . . . . . . . Kills . | . . . . . . . Allies Corrupted . | . . . . . . . Allies Melted . | . . . . . . . Intel | -11 -10 -9 -9 -8 -7 -7 ------- Run | Yrd Mat Mat Min Mat Fac DSF Robot Analysis Total . | . . . . . . . Derelict Logs Recovered 1 | . . . 1 . . . Drone Launches . | . . . . . . . Drone Recoveries . | . . . . . . . Exploration | -11 -10 -9 -9 -8 -7 -7 ------------- Run | Yrd Mat Mat Min Mat Fac DSF Turns Passed 4691 | 76 949 1188 430 1748 10 290 Spaces Moved 1795 | 50 477 340 232 646 4 46 Core 46 | 24 . . . . . 22 Treads 310 | . . . 213 97 . . Legs 1349 | 26 477 269 . 549 4 24 Wheels 38 | . . 38 . . . . Hover 3 | . . 3 . . . . Flight 49 | . . 30 19 . . . Fastest Speed 50 | 50 120 115 160 190 260 260 Average Speed 219 | 86 164 268 167 249 260 420 Slowest Speed 750 | 120 190 490 247 330 260 750 Overloaded Moves . | . . . . . . . Propulsion Burnouts . | . . . . . . . Robots Hopped . | . . . . . . . Cave-ins Triggered . | . . . . . . . Exploration Rate (%) 37 | 5 55 31 53 42 . 36 Regions Visited 6 Branch Regions 1 Pre-discovered Areas 1 | . . . 1 . . . Known Exits Taken 1 | . . . . . 1 . Unknown Exits Taken 5 | 1 1 1 1 1 . . Scrap Searched 1 | . . . 1 . . . Spaces Dug . | . . . . . . . Terrain Destroyed 343 | . 4 57 87 195 . . Melee . | . . . . . . . Projectile 3 | . . 3 . . . . AOE 340 | . 4 54 87 195 . . Terrain Rammed . | . . . . . . . Walls Destroyed . | . . . . . . . Machines Disabled . | . . . . . . . Actions | -11 -10 -9 -9 -8 -7 -7 --------- Run | Yrd Mat Mat Min Mat Fac DSF Total 2265 | 82 592 503 265 724 5 94 Wait 161 | 18 62 47 22 3 . 9 Move 1789 | 49 476 339 231 645 3 46 Hop . | . . . . . . . Pick Up 66 | 9 13 20 3 19 . 2 Fast Attach 1 | 1 . . . . . . Attach 55 | 5 3 22 . 11 2 12 Detach 1 | . . 1 . . . . Swap 22 | . 5 6 3 7 . 1 Drop 25 | . 5 14 2 4 . . Fire 145 | . 28 54 4 35 . 24 Melee . | . . . . . . . Ram . | . . . . . . . Kick . | . . . . . . . Crush . | . . . . . . . Escape Stasis . | . . . . . . . Rewire . | . . . . . . . Trap . | . . . . . . . Miscellaneous . | . . . . . . . Route ------- -11/Scrapyard -10/Materials (discovered 2 exits: *Mat / [*Min]) -9/Materials -9/Mines -8/Materials -7/Factory -7/DSF (discovered 1 exit: [*Fac]) History --------- Turn | Location | Event 6 | -11/Scrapyard | Discovered new exit (range 15) 77 | -11/Scrapyard | Entered Materials 242 | -10/Materials | Discovered new exit (range 15) 302 | -10/Materials | Build established: Mutant 533 | -10/Materials | Discovered new exit (range 15) 1026 | -10/Materials | Entered another Materials area 1026 | -9/Materials | Evolved 2 slots: Utility x1, Weapon x1 1141 | -9/Materials | Core integrity fell below 50% 1265 | -9/Materials | Lost 4 parts (1p1n1u1w) 1538 | -9/Materials | Build established: Gunner 1637 | -9/Materials | Discovered new exit (range 7) 1872 | -9/Materials | Core integrity fell below 20% 1918 | -9/Materials | Destroyed 7 combat bots 1926 | -9/Materials | Lost 4 parts (1p1n1u1w) 2210 | -9/Materials | Build established: Tank 2214 | -9/Materials | Entered Mines 2224 | -9/Mines | Joined a pair of Derelicts in attacking an 0b10 outpost 2321 | -9/Mines | Learned location of Recycling (-9) 2598 | -9/Mines | Discovered new exit (range 5) 2644 | -9/Mines | Entered Materials 2644 | -8/Materials | Evolved 2 slots: Power x1, Utility x1 2960 | -8/Materials | Lost 7 parts (2p2n1u2w) 3220 | -8/Materials | Build established: Bomber 3294 | -8/Materials | Discovered new exit (range 8) 4392 | -8/Materials | Entered Factory 4392 | -7/Factory | Evolved 2 slots: Utility x1, Weapon x1 4400 | -7/Factory | Identified exit to DSF 4402 | -7/Factory | Entered DSF 4461 | -7/DSF | Additional patrols routed to DSF 4549 | -7/DSF | Lost 5 parts (1p1n1u2w) 4553 | -7/DSF | Discovered new exit (range 18) 4642 | -7/DSF | Lost 6 parts (2p1n1u2w) 4643 | -7/DSF | Core integrity fell below 50% 4688 | -7/DSF | Core integrity fell below 20% 4692 | -7/DSF | Destroyed by G-47 Trooper with Particle Gun Last Messages --------------- Knocked back. Penetrated by Slug. Rocket Launcher destroyed. Acquired 7 matter. H-61 Shepherd calls for reinforcements. ALERT: Hostile activity reported, dispatching reinforcements to area. Lgt. Nuclear Core destroyed. Imp. Targeting Computer destroyed. Critical hit (Blast). Acquired 7 matter. Acquired 4 matter. Knocked back. Acquired 13 matter. Hvy. Particle Cannon destroyed. Imp. Heat Sink destroyed. Heat Sink destroyed. Ion Cannon destroyed. Acquired 3 matter. Lrg. Battery destroyed. Map ----- +----------------------------------------------------+ | ??????????????????????????????????????????????? | | ??????????????????????????????????????????????? | | ??????????????????????????????????????????????? | | ??????????????????????????????????????????????? | | ??????????????????????????????????????????????? | | ??????????????????????????????????????????????? | | ??????????????????????????????????????????????? | | ??????????????????????????????????????????????? | | ??????????????????????????????????????????????? | | ??????????????????????????????????????????????? | | ??????????????????????? ????????????????????? | | ??????????????????????? !???????????????????? | | ??????????????????????# #???????????????????? | | ?????????????????????##^^"##??????????????????? | | ?????????????????????# ^%^##?????????????????? | | ????????????????????? " ?????????????????? | | ????????! ??????????? ^ ??????????????????? | | ????????! ??????????? ^ a??????????????????? | | ???????? ??????????? ^???????????????????? | | ???????? #??????????# #???????????????????? | | ???????## #????????### ###?????????????????? | | ???????? &????????#!! [[#?????????????????? | | ???????? &?????????!! [[#?????????????????? | | ???????? &??????????! [[#?????????????????? | | ???????## ##??????#### ###?????????????????? | | ???????#& &???????#; @ [[#?????????????????? | | ???????#& &???????## [[#?????????????????? | | ????????# #?######## g [[#?????????????????? | | ??????### ###&&#&&&#;#g=%###??=#?????????????? | | ????###"" ##&&#&&&#;[* [;##===#==## ???????? | | ????""""" = [g = %[% ""????? | | ??????#"" % H !%=[ * <""????? | | ??????#"""""##&&#&&&# #===#==##"""""????? | | ??????#"""""######### #####?????????????? | | ??????####"##???????###"#####?????????????????? | | ?????????#"#??????????# #?????????????????????? | | ?????????""#??????????###?????????????????????? | | ?????????##???????????????????????????????????? | | ??????????????????????????????????????????????? | | ??????????????????????????????????????????????? | | ??????????????????????????????????????????????? | | ??????????????????????????????????????????????? | | | | | | | | | | | | | | | | | +----------------------------------------------------+ Best States ------------- Heat Dissipation 58 Energy Generation 23 Energy Capacity 690 Matter Stores 400 Matter Capacity 450 Sight Range 18 Terrain Scan Density 85 Base Temperature (-) 100 Armor Coverage 225 Evasion (%) 55 Targeting Accuracy 6 Recoil Reduction 2 Item Schematics ----------------- Ion Engine | -9/Materials | Scanalyzed Robot Schematics ------------------ None Fabricated ------------ Nothing Alien Tech Used ----------------- None Achievements -------------- Everything Is Under Control Universal Adapter Challenges ------------ None Game ------ Seed FieldProtonLance Manual? 0 Play Time 00:38:05 Cumulative 4.8 hours Start 2024.04.03 @ 09:04:11 End 2024.04.03 @ 09:42:26 Sessions 1 Manual Loads 0 Difficulty Rogue Special Mode None Game No. 11 Rogue 11 Adventurer 0 Explorer 0 Win Type - Total 0 Types 0/0/0/0/0/0/0/0/0 Lore% 9 Gallery% 9 Achievement% 10 Wizard Run 0 Options --------- Layout 1 ASCII 0 Keyboard 0 Movement Mouse Keybinds 0 Fullscreen 1 Font 32/SmallcapsGlow Map View 50x35 Zoom Use 0% Tactical HUD 0 Map Filters NONE Filters NONE Steam 1 RUN: dc86e67e-3b77-4f87-ab0c-0750a0199c54